bitfinex-derivatives/quotes_BTCF0:USTF0_20250424
["timestamp","ask_amount","ask_price","bid_price","bid_amount"]
[1745537402844,0.2341,93778.0,93777.0,0.2785911]
[1745537403347,0.2728,93778.0,93777.0,0.2785911]
[1745537404945,0.2728,93778.0,93777.0,0.172]
[1745537405246,0.2728,93778.0,93777.0,0.2785911]
[1745537405448,0.2728,93778.0,93777.0,0.172]
[1745537406037,0.2728,93778.0,93777.0,0.2785911]
[1745537413250,0.2728,93778.0,93777.0,0.2795911]
[1745537413740,0.2728,93778.0,93777.0,0.2805911]
[1745537414750,0.18188,93778.0,93777.0,0.6413911]
[1745537414955,0.16,93778.0,93777.0,0.6413911]
[1745537415450,0.16,93778.0,93777.0,0.7236911]
[1745537418857,0.16,93778.0,93777.0,0.6171]
[1745537419056,0.16,93778.0,93777.0,0.2563]
[1745537419251,0.16,93778.0,93777.0,0.3628911]
[1745537419855,0.16,93778.0,93777.0,0.2563]
[1745537420049,0.16,93778.0,93777.0,0.3628911]
[1745537427761,0.2004,93778.0,93777.0,0.3628911]
[1745537428756,0.2004,93778.0,93777.0,0.174]
[1745537430061,0.30699,93778.0,93777.0,0.174]
[1745537430948,0.2004,93778.0,93777.0,0.174]
[1745537431350,0.2024,93778.0,93777.0,0.173]
[1745537431662,0.2024,93778.0,93777.0,0.172]
[1745537431852,0.2034,93778.0,93777.0,0.172]
[1745537432055,0.2024,93778.0,93777.0,0.172]
[1745537432760,0.2014,93778.0,93777.0,0.172]
[1745537432961,0.2024,93778.0,93777.0,0.172]
[1745537433366,0.2024,93778.0,93777.0,0.2785911]
[1745537433570,0.2024,93778.0,93777.0,0.3233911]
[1745537433862,0.2024,93778.0,93777.0,0.2168]
[1745537434266,0.2024,93778.0,93777.0,0.3233911]
[1745537434955,0.2014,93778.0,93777.0,0.3233911]
[1745537435156,0.2024,93778.0,93777.0,0.3233911]
[1745537435362,0.2014,93778.0,93777.0,0.3233911]
[1745537436167,0.2004,93778.0,93777.0,0.3253911]
[1745537436361,0.30699,93778.0,93777.0,0.174]
[1745537436665,0.2004,93778.0,93777.0,0.174]
[1745537437164,0.2004,93778.0,93777.0,0.2805911]
[1745537437361,0.2487,93778.0,93777.0,0.2805911]
[1745537437761,0.35529,93778.0,93777.0,0.174]
[1745537437956,0.0533029,93765.0,93755.0,0.0464]
[1745537438160,0.407,93764.0,93763.0,0.106607]
[1745537438355,0.7908,93764.0,93763.0,0.106607]
[1745537439465,0.7908,93764.0,93763.0,0.278607]
[1745537439853,0.7918,93764.0,93763.0,0.278607]
[1745537440662,0.7928,93764.0,93763.0,0.278607]
[1745537441365,0.7938,93764.0,93763.0,0.278607]
[1745537445567,0.7938,93764.0,93763.0,0.278607]
[1745537445953,0.3392,93764.0,93763.0,0.323407]
[1745537446160,0.3392,93764.0,93763.0,0.370107]
[1745537446455,0.3392,93764.0,93763.0,0.172]
[1745537446657,0.7666059,93764.0,93763.0,0.172]
[1745537447257,0.7646059,93764.0,93763.0,0.172]
[1745537447458,0.7656059,93764.0,93763.0,0.172]
[1745537447655,0.7656059,93764.0,93763.0,0.278607]
[1745537447656,0.0482,93764.0,93763.0,0.278607]
[1745537447855,0.2982,93764.0,93763.0,0.278607]
[1745537448262,0.2972,93764.0,93763.0,0.278607]
[1745537448668,0.2972,93764.0,93763.0,0.370507]
[1745537448862,0.2982,93764.0,93763.0,0.370507]
[1745537449365,0.2972,93764.0,93763.0,0.370507]
[1745537449571,0.2982,93764.0,93763.0,0.370507]
[1745537449866,0.2972,93764.0,93763.0,0.370507]
[1745537450060,0.2972,93764.0,93763.0,0.371507]
[1745537450773,0.2962,93764.0,93763.0,0.372507]
[1745537452765,0.2962,93764.0,93763.0,0.371507]
[1745537453070,0.2962,93764.0,93763.0,0.372507]
[1745537460673,0.2962,93764.0,93763.0,0.371507]
[1745537460972,0.2962,93764.0,93763.0,0.370507]
[1745537463275,0.25,93764.0,93763.0,0.370507]
[1745537463775,0.25,93764.0,93763.0,0.371507]
[1745537464670,0.25,93764.0,93763.0,0.372507]
[1745537465972,0.25,93764.0,93763.0,0.2649]
[1745537466273,0.3566059,93764.0,93763.0,0.174]
[1745537466463,0.499852,93764.0,93748.0,0.4076]
[1745537466668,0.0533086,93754.0,93748.0,0.4076]
[1745537466865,0.0958,93753.0,93749.0,0.1066227]
[1745537467065,0.4451,93753.0,93748.0,0.4609118]
[1745537467266,0.5851,93753.0,93750.0,0.1066212]
[1745537467469,0.4451,93753.0,93751.0,0.2023205]
[1745537467673,0.4451,93753.0,93752.0,0.1066195]
[1745537467875,0.3485,93753.0,93752.0,0.1066195]
[1745537468070,0.3485,93753.0,93752.0,0.2023195]
[1745537468375,0.3495,93753.0,93752.0,0.3743195]
[1745537468768,0.3485,93753.0,93752.0,0.3743195]
[1745537469077,0.3505,93753.0,93752.0,0.3743195]
[1745537469770,0.3485,93753.0,93752.0,0.3743195]
[1745537474372,0.3,93753.0,93752.0,0.3743195]
[1745537476376,0.3,93753.0,93752.0,0.3753195]
[1745537476574,0.3,93753.0,93752.0,0.3763195]
[1745537477078,0.3,93753.0,93752.0,0.3753195]
[1745537477274,0.3,93753.0,93752.0,0.3763195]
[1745537477672,0.3,93753.0,93752.0,0.3753195]
[1745537477979,0.3,93753.0,93752.0,0.3763195]
[1745537478272,0.3,93753.0,93752.0,0.3753195]
[1745537478472,0.3,93753.0,93752.0,0.3763195]
[1745537481173,0.3,93753.0,93752.0,0.3753195]
[1745537481481,0.3,93753.0,93752.0,0.3763195]
[1745537482779,0.3,93753.0,93752.0,0.3753195]
[1745537482973,0.3,93753.0,93752.0,0.3763195]
[1745537483776,0.3,93753.0,93752.0,0.3753195]
[1745537483982,0.3,93753.0,93752.0,0.3763195]
[1745537486983,0.3,93753.0,93752.0,0.2697]
[1745537487181,0.3666184,93753.0,93752.0,0.2222]
[1745537487487,0.3666184,93753.0,93752.0,0.174]
[1745537487686,0.26,93753.0,93752.0,0.174]
[1745537488086,0.3538,93753.0,93752.0,0.174]
[1745537488292,0.5097184,93753.0,93752.0,0.173]
[1745537489088,0.5107184,93753.0,93752.0,0.172]
[1745537489281,0.5107184,93753.0,93752.0,0.2786195]
[1745537489282,0.4041,93753.0,93752.0,0.2786195]
[1745537489479,0.3103,93753.0,93752.0,0.3283195]
[1745537490485,0.3093,93753.0,93752.0,0.3283195]
[1745537490686,0.3103,93753.0,93752.0,0.3283195]
[1745537491193,0.262,93753.0,93752.0,0.3283195]
[1745537492186,0.26,93753.0,93752.0,0.3283195]
[1745537496886,0.26,93753.0,93752.0,0.3293195]
[1745537497187,0.26,93753.0,93752.0,0.3303195]
[1745537497687,0.26,93753.0,93752.0,0.3293195]
[1745537497884,0.22588362,93753.0,93752.0,0.3303195]
[1745537498082,0.20797362,93753.0,93752.0,0.3303195]
[1745537498485,0.20797362,93753.0,93752.0,0.3293195]
[1745537498785,0.20797362,93753.0,93752.0,0.3303195]
[1745537499497,0.20797362,93753.0,93752.0,0.3293195]
[1745537499788,0.20797362,93753.0,93752.0,0.3303195]
[1745537499994,0.20797362,93753.0,93752.0,0.2237]
[1745537500286,0.20797362,93753.0,93752.0,0.3303195]
[1745537500991,0.20797362,93753.0,93752.0,0.3313195]
[1745537501582,0.20797362,93753.0,93752.0,0.3303195]
[1745537501782,0.20797362,93753.0,93752.0,0.3313195]
[1745537503790,0.15609362,93753.0,93752.0,0.3313195]
[1745537504790,0.15609362,93753.0,93752.0,0.3303195]
[1745537504988,0.15609362,93753.0,93752.0,0.3313195]
[1745537505393,0.15609362,93753.0,93752.0,0.3303195]
[1745537505695,0.15609362,93753.0,93752.0,0.3313195]
[1745537511903,0.0214998,93753.0,93752.0,0.3313195]
[1745537512110,0.3,93772.0,93771.0,0.1065979]
[1745537512412,0.28,93772.0,93771.0,0.1598968]
[1745537512615,0.23126085,93772.0,93771.0,0.2665408]
[1745537512799,0.0060313,93772.0,93771.0,0.2665408]
[1745537513005,0.0497,93789.0,93788.0,0.1065786]
[1745537513313,0.3297,93789.0,93788.0,0.1065786]
[1745537513701,0.3297,93789.0,93788.0,0.2481786]
[1745537514103,0.3347,93789.0,93788.0,0.4201786]
[1745537514309,0.19065397,93789.0,93788.0,0.7809786]
[1745537514505,0.005,93789.0,93788.0,0.7809786]
[1745537514705,0.105,93800.0,93799.0,0.1065661]
[1745537515008,0.355,93800.0,93799.0,0.4653661]
[1745537515203,0.30164162,93800.0,93799.0,0.6373661]
[1745537515404,0.24828324,93800.0,93799.0,0.6373661]
[1745537515603,0.24828324,93800.0,93799.0,0.7328661]
[1745537515807,0.19492486,93800.0,93799.0,0.7328661]
[1745537516011,0.0532705,93822.0,93799.0,0.7328661]
[1745537516012,0.35800371,93819.0,93799.0,0.8055]
[1745537516204,0.3608,93854.0,93819.0,0.1772]
[1745537516404,0.27,93854.0,93840.0,0.10202634]
[1745537516706,0.6308,93854.0,93841.0,0.16198]
[1745537516905,0.105,93900.0,93866.0,0.3608]
[1745537517117,0.005,93900.0,93896.0,0.7216]
[1745537517413,0.3608,93982.0,93925.0,0.3608]
[1745537517611,0.3608,93993.0,93945.0,0.3608]
[1745537517612,0.3608,93973.0,93945.0,0.3608]
[1745537517810,0.3608,93964.0,93946.0,0.0982]
[1745537518013,0.3608,93955.0,93946.0,0.0982]
[1745537518204,0.3608,93967.0,93946.0,0.28433607]
[1745537518405,0.4671982,93947.0,93946.0,0.28433607]
[1745537518611,0.5319991,93946.0,93926.0,0.00106466]
[1745537518804,0.3608,93927.0,93926.0,0.0138232]
[1745537519004,0.6608,93927.0,93913.0,0.3608]
[1745537519204,0.3,93927.0,93924.0,0.3608]
[1745537519407,0.6608,93927.0,93913.0,0.37463704]
[1745537519607,0.15247407,93923.0,93913.0,0.37463704]
[1745537519911,0.3608,93968.0,93923.0,0.0532122]
[1745537520114,0.3465712,93959.0,93958.0,0.1063858]
[1745537520311,0.29,93959.0,93958.0,0.1063858]
[1745537520520,0.29,93959.0,93957.0,0.3608]
[1745537520812,0.0011,93957.0,93946.0,0.3578]
[1745537521008,0.2511,93957.0,93947.0,0.3608]
[1745537521206,0.2511,93957.0,93936.0,0.3608]
[1745537521207,0.1064096,93937.0,93936.0,0.3608]
[1745537521407,0.28,93937.0,93936.0,0.7454107]
[1745537522319,0.28,93937.0,93936.0,0.9174107]
[1745537522714,0.4628656,93937.0,93936.0,0.4502]
[1745537522914,0.7328656,93937.0,93936.0,0.0894]
[1745537523309,0.7328656,93937.0,93936.0,0.0934]
[1745537523509,0.7328656,93937.0,93936.0,0.0954]
[1745537523917,0.27,93937.0,93936.0,0.0914]
[1745537524118,0.2394005,93945.0,93936.0,0.1476053]
[1745537524415,0.5294005,93945.0,93944.0,0.3608]
[1745537524715,0.5294005,93945.0,93944.0,0.4672016]
[1745537524916,0.3402,93945.0,93944.0,0.4672016]
[1745537525117,0.1063748,93968.0,93956.0,0.106388]
[1745537525418,0.1545709,93957.0,93956.0,0.467188]
[1745537525612,0.27347483,93976.0,93975.0,0.1063665]
[1745537525914,0.28347483,93976.0,93975.0,0.8279665]
[1745537526113,0.25150838,93976.0,93975.0,0.9999665]
[1745537526516,0.21954193,93976.0,93975.0,1.15977849]
[1745537526820,0.21954193,93976.0,93975.0,1.21017849]
[1745537527019,0.31,93976.0,93975.0,1.35381199]
[1745537527217,0.43,93995.0,93994.0,0.106345]
[1745537527520,0.08461657,94000.0,93999.0,0.1063394]
[1745537527719,0.34461657,94000.0,93999.0,0.1056294]
[1745537528219,0.34461657,94000.0,93999.0,0.2776294]
[1745537529012,0.0505,94041.0,94023.0,0.1063122]
[1745537529212,0.1037,94040.0,94029.0,0.0531525]
[1745537529524,0.0011,94047.0,94046.0,0.1062862]
[1745537529818,0.3608,94079.0,94039.0,0.7216]
[1745537530014,0.3608,94067.0,94053.0,0.3608]
[1745537530215,0.0505,94066.0,94053.0,0.5328]
[1745537530414,0.3841,94066.0,94053.0,0.5328]
[1745537530612,0.4670772,94054.0,94053.0,0.172]
[1745537530915,0.4670772,94054.0,94029.0,0.3608]
[1745537530916,0.1063043,94030.0,94029.0,0.3608]
[1745537531109,0.3963043,94030.0,94029.0,0.5328]
[1745537531313,0.7526523,94030.0,94029.0,0.172]
[1745537531515,0.8494123,94030.0,94029.0,0.172]
[1745537531716,0.760448,94030.0,94029.0,0.172]
[1745537531908,0.5971243,94030.0,94029.0,0.172]
[1745537532311,0.4041,94030.0,94029.0,0.172]
[1745537532523,0.4041,94030.0,94029.0,0.6391054]
[1745537532821,0.3505,94030.0,94029.0,0.6391054]
[1745537533316,0.26917799,94030.0,94029.0,0.6391054]
[1745537533515,0.21571802,94030.0,94029.0,0.9954534]
[1745537534115,0.21571802,94030.0,94029.0,0.9974534]
[1745537534616,0.21571802,94030.0,94029.0,0.7474534]
[1745537535124,0.20613539,94030.0,94029.0,0.7474534]
[1745537535323,0.17632275,94030.0,94029.0,0.7474534]
[1745537535622,0.17632275,94030.0,94029.0,0.7454534]
[1745537535817,0.13692748,94030.0,94029.0,0.7514534]
[1745537536019,0.05561365,94030.0,94029.0,1.0054534]
[1745537536228,0.3608,94063.0,94048.0,0.106284]
[1745537536229,0.1057,94062.0,94048.0,0.106284]
[1745537536417,0.3,94049.0,94048.0,0.3608]
[1745537536615,0.3,94049.0,94048.0,0.573412]
[1745537536823,0.26060821,94049.0,94048.0,0.934212]
[1745537537021,0.26060821,94049.0,94048.0,1.020892]
[1745537537219,0.26060821,94049.0,94048.0,1.192892]
[1745537537422,0.22263746,94049.0,94048.0,1.449892]
[1745537537823,0.22263746,94049.0,94048.0,1.202892]
[1745537538018,0.3962828,94049.0,94048.0,0.182]
[1745537538324,0.26,94049.0,94048.0,0.182]
[1745537538532,0.3662828,94049.0,94048.0,0.182]
[1745537539027,0.4754828,94049.0,94048.0,0.182]
[1745537539219,0.4754828,94049.0,94048.0,0.18]
[1745537539622,0.3692,94049.0,94048.0,0.18]
[1745537539825,0.4754828,94049.0,94048.0,0.177]
[1745537540018,0.3702,94049.0,94048.0,0.177]
[1745537540525,0.3702,94049.0,94048.0,0.280284]
[1745537540826,0.261,94049.0,94048.0,0.280284]
[1745537541428,0.261,94049.0,94048.0,0.174]
[1745537541623,0.3972828,94049.0,94048.0,0.174]
[1745537541822,1.2210508,94049.0,94023.0,0.3608]
[1745537542029,0.106319,94017.0,94014.0,0.3608]
[1745537542224,0.6608,94017.0,93996.0,0.3608]
[1745537542429,0.7216,94006.0,93990.0,0.00159579]
[1745537542628,0.106353,93987.0,93975.0,0.00532054]
[1745537542823,0.386353,93987.0,93975.0,0.00532054]
[1745537543217,0.386353,93987.0,93986.0,0.17306398]
[1745537543523,0.386353,93987.0,93986.0,0.19074667]
[1745537544124,0.28,93987.0,93986.0,0.19074667]
[1745537544426,0.1599282,93987.0,93986.0,1.01430077]
[1745537545232,0.1599282,93987.0,93986.0,1.06410077]
[1745537545623,0.0773282,93987.0,93986.0,1.06410077]
[1745537545932,0.42,94006.0,94002.0,0.1063355]
[1745537546124,0.051,94005.0,94002.0,0.1063355]
[1745537546325,0.331,94005.0,94004.0,0.3608]
[1745537546823,0.24426294,94005.0,94004.0,0.4671337]
[1745537547331,0.24426294,94005.0,94004.0,0.6391337]
[1745537548530,0.24426294,94005.0,94004.0,0.6401337]
[1745537549031,0.39,94024.0,94023.0,0.1063122]
[1745537549326,0.1,94024.0,94023.0,0.8279122]
[1745537549720,0.1,94024.0,94023.0,0.9349122]
[1745537550229,0.1,94024.0,94023.0,1.1069122]
[1745537550418,0.1,94024.0,94023.0,0.5328]
[1745537550620,0.1,94024.0,94023.0,0.5348]
[1745537550819,0.1,94024.0,94023.0,0.6411122]
[1745537551233,0.05953797,94024.0,94023.0,0.6411122]
[1745537551427,0.29,94024.0,94023.0,0.6411117]
[1745537551818,0.29,94024.0,94023.0,0.5348]
[1745537552025,0.29,94024.0,94023.0,0.5328]
[1745537552226,0.1063111,94024.0,94023.0,0.5368]
[1745537552529,0.1063111,94024.0,94023.0,0.0939]
[1745537552530,0.7426671,94024.0,94023.0,0.0939]
[1745537552728,0.636356,94024.0,94023.0,0.003]
[1745537552928,0.1063382,94000.0,93999.0,0.3608]
[1745537553125,0.4063382,94000.0,93999.0,0.3608]
[1745537553330,0.7627222,94000.0,93999.0,0.3608]
[1745537553833,0.31,94000.0,93999.0,0.4671394]
[1745537554224,0.0542429,94047.0,94016.0,0.0531596]
[1745537554425,0.0509,94039.0,94033.0,0.7216]
[1745537554636,0.3409,94039.0,94033.0,0.7216]
[1745537555231,0.3409,94039.0,94033.0,0.8936]
[1745537555731,0.3409,94039.0,94033.0,0.8896]
[1745537555931,0.0534,94038.0,94033.0,0.9959006]
[1745537556133,0.3434,94038.0,94033.0,0.8896]
[1745537556333,0.29,94038.0,94037.0,0.1062964]
[1745537556529,0.3426,94038.0,94037.0,0.1062964]
[1745537557130,0.3426,94038.0,94037.0,0.2782964]
[1745537557332,0.3456,94038.0,94037.0,0.2782964]
[1745537557839,0.3456,94038.0,94037.0,0.172]
[1745537558640,0.3426,94038.0,94037.0,0.172]
[1745537558838,0.3426,94038.0,94037.0,0.173]
[1745537559227,0.3426,94038.0,94037.0,0.175]
[1745537559434,0.3426,94038.0,94037.0,0.2812964]
[1745537559636,0.3426,94038.0,94037.0,0.2822964]
[1745537560327,0.3426,94038.0,94037.0,0.176]
[1745537561732,0.29,94038.0,94037.0,0.176]
[1745537561940,0.29,94038.0,94037.0,0.3327964]
[1745537563031,0.29,94038.0,94037.0,0.3337964]
[1745537564636,0.29,94038.0,94037.0,0.3317964]
[1745537564936,0.29,94038.0,94037.0,0.3337964]
[1745537565442,0.29,94038.0,94037.0,0.3287964]
[1745537565644,0.29,94038.0,94037.0,0.3337964]
[1745537567340,0.4162953,94038.0,94037.0,0.177]
[1745537567941,0.4162953,94038.0,94037.0,0.175]
[1745537568142,0.4162953,94038.0,94037.0,0.178]
[1745537568344,0.7726353,94038.0,94037.0,0.178]
[1745537568539,0.7726353,94038.0,94037.0,0.175]
[1745537568842,0.1063054,94029.0,94028.0,0.16316711]
[1745537569030,0.3863054,94029.0,94028.0,0.16316711]
[1745537569236,0.3863054,94029.0,94028.0,0.14666711]
[1745537569237,0.7426574,94029.0,94028.0,0.14666711]
[1745537569954,0.1063224,94014.0,94013.0,0.16003147]
[1745537570240,0.3863224,94014.0,94013.0,0.33203147]
[1745537570444,0.7426904,94014.0,94013.0,0.33203147]
[1745537570645,0.4926904,94014.0,94013.0,0.33203147]
[1745537572241,0.4926904,94014.0,94013.0,0.172]
[1745537572441,0.5979904,94014.0,94013.0,0.172]
[1745537572641,0.5979904,94014.0,94013.0,0.174]
[1745537572841,0.5979904,94014.0,94013.0,0.175]
[1745537573948,0.5979904,94014.0,94013.0,0.2813235]
[1745537574849,0.28,94014.0,94013.0,0.2813235]
[1745537575043,0.28,94014.0,94013.0,0.3816235]
[1745537575742,0.3863224,94014.0,94013.0,0.3816235]
[1745537576139,0.23952314,94014.0,94013.0,0.3816235]
[1745537576547,0.15732314,94014.0,94013.0,0.3816235]
[1745537576849,0.06362961,94014.0,94013.0,0.73799149]
[1745537577049,0.5263022,94033.0,94032.0,0.1063021]
[1745537577249,0.36896253,94033.0,94032.0,0.4671021]
[1745537577548,0.3,94033.0,94032.0,0.4671021]
[1745537577750,0.4063009,94033.0,94032.0,0.4671021]
[1745537578145,0.4083009,94033.0,94032.0,0.7408021]
[1745537579044,0.4093009,94033.0,94032.0,0.7408021]
[1745537579349,0.4093009,94033.0,94032.0,0.6345]
[1745537579549,0.4093009,94033.0,94032.0,0.5328]
[1745537579745,0.5146489,94033.0,94032.0,0.172]
[1745537579946,0.5156489,94033.0,94032.0,0.172]
[1745537580347,0.1063088,94026.0,94025.0,0.3608]
[1745537580553,0.4163088,94026.0,94025.0,0.3608]
[1745537580751,0.106319,94017.0,94016.0,0.3608]
[1745537581055,0.416319,94017.0,94016.0,0.3608]
[1745537581250,0.522683,94017.0,94016.0,0.3608]
[1745537581847,0.575683,94017.0,94016.0,0.3608]
[1745537582250,0.575683,94017.0,94016.0,0.5378]
[1745537582556,0.31,94017.0,94016.0,0.6441201]
[1745537582759,0.1594745,94021.0,94020.0,0.0531564]
[1745537583054,0.4294745,94021.0,94020.0,0.1043564]
[1745537583355,0.4294745,94021.0,94020.0,0.3310564]
[1745537583555,0.4294745,94021.0,94020.0,0.2779]
[1745537584149,0.59003451,94021.0,94020.0,0.172]
[1745537584349,0.63993451,94021.0,94020.0,0.172]
[1745537584963,0.64193451,94021.0,94020.0,0.172]
[1745537585654,0.64493451,94021.0,94020.0,0.172]
[1745537586346,0.275,94021.0,94020.0,0.2783156]
[1745537586744,0.275,94021.0,94020.0,0.3799156]
[1745537586951,0.48767451,94021.0,94020.0,0.5328]
[1745537587248,0.48767451,94021.0,94020.0,0.172]
[1745537587651,0.1063382,94000.0,93993.0,0.1063455]
[1745537587853,0.3963382,94000.0,93994.0,0.053]
[1745537588352,0.5027222,94000.0,93999.0,0.5328]
[1745537589050,0.5027222,94000.0,93999.0,0.5338]
[1745537589645,0.5027222,94000.0,93999.0,0.5348]
[1745537590257,0.5027222,94000.0,93999.0,0.6411394]
[1745537590258,0.3963382,94000.0,93999.0,0.6411394]
[1745537590753,0.4796182,94000.0,93999.0,0.6411394]
[1745537590948,0.29,94000.0,93999.0,0.6411394]
[1745537592560,0.1063122,94023.0,94022.0,0.1594688]
[1745537592853,0.26,94023.0,94022.0,0.4139562]
[1745537593054,0.26,94023.0,94022.0,0.5859562]
[1745537593855,0.21887884,94023.0,94022.0,0.5859562]
[1745537594157,0.20822949,94023.0,94022.0,0.5859562]
[1745537594454,0.12532949,94023.0,94022.0,0.5859562]
[1745537594651,0.12832949,94023.0,94022.0,0.5859562]
[1745537594851,0.13132949,94023.0,94022.0,0.5859562]
[1745537595359,0.39,94042.0,94035.0,0.0531493]
[1745537595556,0.0011,94047.0,94046.0,0.1062862]
[1745537595759,0.2611,94047.0,94045.0,0.1033]
[1745537596051,0.2611,94047.0,94046.0,0.1062862]
[1745537596446,0.2611,94047.0,94046.0,0.2095862]
[1745537597045,0.2611,94047.0,94046.0,0.3815862]
[1745537598854,0.22490472,94047.0,94046.0,0.7379182]
[1745537599059,0.17169196,94047.0,94046.0,0.7379182]
[1745537599360,0.35812,94066.0,94065.0,0.1062648]
[1745537599561,0.0531245,94079.0,94071.0,0.106258]
[1745537599857,0.2952,94072.0,94071.0,0.106258]
[1745537600358,0.2952,94072.0,94071.0,0.5328]
[1745537600359,0.4014573,94072.0,94071.0,0.5328]
[1745537600951,0.4014573,94072.0,94071.0,0.639058]
[1745537601657,0.4014573,94072.0,94071.0,0.5328]
[1745537602154,0.4014573,94072.0,94071.0,0.743658]
[1745537602454,0.2952,94072.0,94071.0,0.743658]
[1745537602960,0.4014569,94072.0,94071.0,0.6374]
[1745537603658,0.5077609,94072.0,94071.0,0.18762475]
[1745537604266,0.1062749,94056.0,94055.0,0.0501]
[1745537604562,0.3662749,94056.0,94055.0,0.1563761]
[1745537605057,0.3662749,94056.0,94055.0,0.0431]
[1745537605249,0.3662749,94056.0,94055.0,0.172]
[1745537605855,0.4178749,94056.0,94055.0,0.18773471]
[1745537606857,0.1062602,94071.0,94070.0,0.1062563]
[1745537607053,0.3662602,94071.0,94070.0,0.4670563]
[1745537608053,0.26,94071.0,94070.0,0.4670563]
[1745537608256,0.26,94071.0,94070.0,0.6390563]
[1745537608459,0.472562,94071.0,94070.0,0.172]
[1745537608765,0.473958,94071.0,94070.0,0.172]
[1745537609460,0.26,94071.0,94070.0,0.6390591]
[1745537610164,0.26,94071.0,94020.0,0.3608]
[1745537610165,1.090344,94071.0,94020.0,0.3608]
[1745537610365,0.23477187,94040.0,94029.0,0.3608]
[1745537610665,0.1063032,94031.0,94030.0,0.0518]
[1745537610869,0.3663032,94031.0,94030.0,0.0518]
[1745537611058,0.3663032,94031.0,94030.0,0.2238]
[1745537611458,0.3663032,94031.0,94030.0,0.2742]
[1745537611756,0.7271032,94031.0,94030.0,0.2224]
[1745537612063,0.26,94031.0,94030.0,0.3287043]
[1745537612362,0.26,94031.0,94030.0,0.3791043]
[1745537613256,0.3663032,94031.0,94030.0,0.3791043]
[1745537613454,0.21287346,94031.0,94030.0,0.3791043]
[1745537613660,0.20513151,94031.0,94030.0,0.3791043]
[1745537614969,0.20413151,94031.0,94030.0,0.3791043]
[1745537616067,0.20413151,94031.0,94030.0,0.3821043]
[1745537616470,0.20413151,94031.0,94030.0,0.3841043]
[1745537619864,0.20413151,94031.0,94030.0,0.6386]
[1745537620056,0.20413151,94031.0,94030.0,0.2778]
[1745537620057,0.3863032,94031.0,94030.0,0.2778]
[1745537620260,0.3863032,94031.0,94030.0,0.1058]
[1745537620860,0.3863032,94031.0,94030.0,0.0554]
[1745537621659,0.3863032,94031.0,94030.0,0.0524]
[1745537621855,0.3873032,94031.0,94030.0,0.0524]
[1745537622362,0.281,94031.0,94030.0,0.002]
[1745537622562,0.281,94031.0,94030.0,0.1572043]
[1745537622755,0.28,94031.0,94030.0,0.2081043]
[1745537622961,0.3873032,94031.0,94030.0,0.2081043]
[1745537623162,0.3873032,94031.0,94030.0,0.2738]
[1745537623762,0.3873032,94031.0,94030.0,0.172]
[1745537625565,0.3863032,94031.0,94030.0,0.172]
[1745537626768,0.3863032,94031.0,94030.0,0.2225]
[1745537626968,0.3863032,94031.0,94030.0,0.2729]
[1745537627167,0.28,94031.0,94030.0,0.2729]
[1745537627368,0.28,94031.0,94030.0,0.3792043]
[1745537627564,0.3863032,94031.0,94030.0,0.3792043]
[1745537628371,0.3863032,94031.0,94030.0,0.2729]
[1745537628559,0.3863032,94031.0,94030.0,0.3792043]
[1745537629074,0.22679098,94031.0,94030.0,0.3792043]
[1745537629469,0.17358196,94031.0,94030.0,0.3792043]
[1745537629679,0.12037294,94031.0,94030.0,0.3792043]
[1745537630170,0.1062863,94046.0,94044.0,0.1062885]
[1745537630371,0.27,94046.0,94045.0,0.466]
[1745537631069,0.3762862,94046.0,94045.0,0.466]
[1745537631275,0.27,94046.0,94045.0,0.7442874]
[1745537633769,0.3762862,94046.0,94045.0,0.638]
[1745537633969,0.48261821,94046.0,94045.0,0.5873]
[1745537634167,0.48261821,94046.0,94045.0,0.172]
[1745537634666,0.53341821,94046.0,94045.0,0.172]
[1745537635171,0.1062896,94043.0,94042.0,0.4670904]
[1745537635365,0.3762896,94043.0,94042.0,0.4670904]
[1745537636171,0.3608,94063.0,94042.0,0.5328]
[1745537636476,0.3608,94063.0,94061.0,0.3608]
[1745537636477,0.2262682,94062.0,94061.0,0.3608]
[1745537637161,0.2262682,94062.0,94061.0,0.5328]
[1745537637567,0.2778682,94062.0,94061.0,0.5328]
[1745537637762,0.2778682,94062.0,94061.0,0.6390693]
[1745537638473,0.2778682,94062.0,94061.0,0.5328]
[1745537638776,0.2788682,94062.0,94061.0,0.6390693]
[1745537640476,0.28689104,94062.0,94061.0,0.172]
[1745537641575,0.18062284,94062.0,94061.0,0.2782693]
[1745537641877,0.28689104,94062.0,94061.0,0.2782693]
[1745537643473,0.12902284,94062.0,94061.0,0.2782693]
[1745537643874,0.12902284,94062.0,94061.0,0.3904693]
[1745537644180,0.34160304,94062.0,94061.0,0.172]
[1745537644371,0.1062795,94052.0,94047.0,0.1154]
[1745537644569,0.3862795,94052.0,94051.0,0.4670806]
[1745537644875,0.28,94052.0,94051.0,0.4670806]
[1745537645076,0.3862795,94052.0,94051.0,0.6390806]
[1745537646170,0.31,94052.0,94051.0,0.6410806]
[1745537646370,0.2273963,94052.0,94051.0,0.6410806]
[1745537646979,0.2273963,94052.0,94051.0,0.7613806]
[1745537647279,0.1062648,94065.0,94064.0,0.0992653]
[1745537647483,0.2962648,94065.0,94064.0,0.0992653]
[1745537647876,0.2962648,94065.0,94064.0,0.1216]
[1745537648081,0.2962648,94065.0,94064.0,0.3998659]
[1745537648377,0.19,94065.0,94064.0,0.3998659]
[1745537653086,0.19,94065.0,94064.0,0.4008659]
[1745537653977,0.2962648,94065.0,94064.0,0.2946]
[1745537654182,0.2962648,94065.0,94064.0,0.2876]
[1745537654383,0.19,94065.0,94064.0,0.3938659]
[1745537654585,0.2962648,94065.0,94064.0,0.2876]
[1745537655692,0.2962648,94065.0,94064.0,0.2233]
[1745537656392,0.4124648,94065.0,94064.0,0.2233]
[1745537657484,0.4124648,94065.0,94064.0,0.2835]
[1745537659193,0.4124648,94065.0,94064.0,0.3897659]
[1745537661298,0.4124648,94065.0,94064.0,0.3827659]